bitfinex/quotes_SOLUSD_20251224
["timestamp","ask_amount","ask_price","bid_price","bid_amount"]
[1766598225025,0.72,122.42,122.39,11.67695447]
[1766598226736,0.72,122.43,122.39,11.00695447]
[1766598227040,0.72,122.43,122.4,3.50643952]
[1766598227938,0.72,122.43,122.4,11.67619843]
[1766598228322,36.36102528,122.45,122.41,0.67]
[1766598228542,37.08102528,122.45,122.41,0.67]
[1766598228742,11.15767296,122.45,122.42,2.83643952]
[1766598229045,11.00283448,122.46,122.43,0.67]
[1766598229046,0.72,122.46,122.43,0.67]
[1766598229830,0.72,122.46,122.42,2.83643952]
[1766598229831,0.72,122.46,122.42,3.50643952]
[1766598230234,0.72,122.46,122.42,11.67483421]
[1766598230434,8.88596474,122.46,122.42,11.67483421]
[1766598231416,0.72,122.45,122.42,11.67483421]
[1766598231619,0.72,122.45,122.42,8.83839469]
[1766598231829,0.72,122.45,122.42,11.67483421]
[1766598232532,0.72,122.45,122.42,3.50643952]
[1766598232727,0.72,122.45,122.42,0.67]
[1766598232933,0.72,122.45,122.42,3.50643952]
[1766598234121,0.72,122.44,122.4,8.83981399]
[1766598234320,0.72,122.44,122.4,0.67]
[1766598234526,0.72,122.44,122.4,3.50643952]
[1766598234846,0.72,122.44,122.41,3.50643952]
[1766598238272,0.72,122.44,122.41,11.67566612]
[1766598238549,0.72,122.44,122.41,0.67]
[1766598239642,0.72,122.44,122.41,3.50643952]
[1766598240749,8.88735177,122.44,122.41,0.67]
[1766598241659,0.72,122.43,122.39,0.67]
[1766598242263,0.72,122.43,122.39,3.50643952]
[1766598242567,0.72,122.43,122.38,63.17]
[1766598242568,8.88877196,122.42,122.38,63.17]
[1766598242850,0.72,122.41,122.38,3.50643952]
[1766598245559,0.72,122.41,122.38,11.67769986]
[1766598246461,8.16877196,122.42,122.38,11.00769986]
[1766598246664,8.88877196,122.42,122.39,0.67]
[1766598247160,0.72,122.42,122.39,3.50643952]
[1766598248658,8.16809268,122.43,122.4,2.83643952]
[1766598248956,0.71,122.44,122.41,3.53643952]
[1766598249334,0.71,122.44,122.41,2.83643952]
[1766598249540,0.71,122.43,122.41,2.83643952]
[1766598249947,0.71,122.43,122.4,11.70627574]
[1766598252368,0.71,122.43,122.4,8.86983622]
[1766598252561,0.71,122.43,122.4,11.70627574]
[1766598255682,104.61,122.46,122.43,0.7]
[1766598256175,104.61,122.46,122.43,3.53643952]
[1766598256362,104.61,122.46,122.43,0.7]
[1766598256757,103.9,122.46,122.43,0.7]
[1766598256962,0.71,122.45,122.42,11.70469236]
[1766598258275,0.71,122.45,122.42,8.86825284]
[1766598258669,0.71,122.45,122.42,0.7]
[1766598258841,8.87666315,122.45,122.42,0.7]
[1766598259044,0.71,122.45,122.42,0.7]
[1766598259647,0.71,122.45,122.38,63.31712698]
[1766598259648,0.71,122.44,122.39,0.7]
[1766598259873,0.71,122.43,122.4,14.92]
[1766598260078,0.71,122.43,122.39,8.17003682]
[1766598260249,0.71,122.43,122.4,8.86986668]
[1766598262770,8.87799031,122.43,122.4,0.7]
[1766598263080,0.71,122.43,122.4,0.7]
[1766598269380,8.16797668,122.43,122.38,23.79106369]
[1766598269585,0.71,122.42,122.39,0.7]
[1766598269779,0.71,122.42,122.39,8.87055059]
[1766598271493,0.71,122.42,122.39,11.70699011]
[1766598272496,8.16734911,122.44,122.4,0.7]
[1766598272694,0.71,122.43,122.4,0.7]
[1766598276194,0.71,122.43,122.39,11.70699011]
[1766598276491,0.71,122.43,122.4,0.7]
[1766598277193,0.71,122.43,122.39,11.72699011]
[1766598278588,0.71,122.43,122.39,11.00699011]
[1766598278768,0.71,122.43,122.4,0.66]
[1766598283593,8.86671542,122.45,122.42,0.66]
[1766598283898,0.7,122.44,122.4,8.16978741]
[1766598284087,0.7,122.44,122.41,3.49643952]
[1766598284813,0.7,122.44,122.41,0.66]
[1766598285018,0.7,122.44,122.4,11.66622693]
[1766598286005,0.7,122.44,122.4,10.64461826]
[1766598286490,0.7,122.44,122.41,0.66]
[1766598289703,0.7,122.44,122.41,8.82913249]
[1766598289911,0.7,122.44,122.41,0.66]
[1766598293206,0.7,122.44,122.41,2.47483085]
[1766598293401,0.7,122.44,122.41,0.66]
[1766598294195,37.15017807,122.46,122.42,1.81483085]
[1766598294196,8.86624683,122.46,122.42,1.81483085]
[1766598294390,8.86537869,122.47,122.44,0.66]
[1766598294895,0.7,122.46,122.43,2.47483085]
[1766598295413,0.7,122.47,122.44,2.47483085]
[1766598297381,0.7,122.47,122.44,0.66]
[1766598300509,0.7,122.45,122.42,8.82830959]
[1766598300836,0.7,122.45,122.42,0.66]
[1766598301004,0.7,122.44,122.41,0.66]
[1766598301387,0.7,122.43,122.39,0.66]
[1766598301700,0.7,122.42,122.39,0.66]
[1766598301884,0.7,122.42,122.39,10.64538698]
[1766598302084,0.7,122.42,122.39,10.64533962]
[1766598302311,0.7,122.42,122.39,2.47483085]
[1766598302614,0.7,122.42,122.39,0.66]
[1766598302797,0.7,122.42,122.39,8.83053501]
[1766598305305,0.7,122.41,122.38,1.81483085]
[1766598305511,0.7,122.41,122.38,0.66]
[1766598305895,0.7,122.41,122.38,10.64592774]
[1766598307594,0.68,122.45,122.41,0.67]
[1766598307797,0.68,122.45,122.41,2.48483085]
[1766598307798,0.68,122.44,122.41,2.48483085]
[1766598309416,0.68,122.43,122.4,2.48483085]
[1766598309713,0.68,122.43,122.39,2.48483085]
[1766598310114,0.68,122.43,122.39,8.84039072]
[1766598310515,0.68,122.43,122.39,10.65522157]
[1766598311424,8.84802093,122.43,122.4,0.67]
[1766598313525,0.68,122.42,122.39,2.48483085]
[1766598313703,0.68,122.42,122.38,10.6555862]
[1766598313904,0.68,122.42,122.4,0.5]
[1766598314519,0.68,122.42,122.38,10.6555862]
[1766598314720,0.68,122.42,122.39,8.17040696]
[1766598315502,0.68,122.42,122.39,8.84040696]
[1766598318101,0.68,122.42,122.38,10.65592725]
[1766598318302,0.68,122.41,122.37,25.57654129]
[1766598319623,0.68,122.41,122.38,10.65609187]
[1766598320125,21.10041292,122.45,122.39,0.67]
[1766598320299,21.10041292,122.45,122.38,8.17126102]
[1766598320300,0.68,122.44,122.42,1.81483085]
[1766598320503,0.68,122.44,122.41,2.48483085]
[1766598320908,0.68,122.44,122.41,0.67]
[1766598322727,0.68,122.44,122.38,15.59]
[1766598322728,0.68,122.41,122.38,15.59]
[1766598323029,0.68,122.41,122.38,23.76124937]
[1766598323223,0.68,122.41,122.38,8.84124937]
[1766598323424,0.68,122.41,122.38,10.65608022]
[1766598323626,0.68,122.41,122.38,2.48483085]
[1766598324233,0.68,122.41,122.38,10.65609538]
[1766598324710,0.68,122.41,122.38,2.48483085]
[1766598328932,8.16893356,122.42,122.39,2.48483085]
[1766598328933,0.68,122.42,122.39,2.48483085]
[1766598329310,0.68,122.42,122.39,0.67]
[1766598329510,0.68,122.42,122.38,1.81483085]
[1766598329711,0.68,122.42,122.38,2.48483085]
[1766598330314,8.16910878,122.42,122.37,1.81483085]
[1766598330618,0.68,122.41,122.37,2.48483085]
[1766598331139,1.81483085,122.4,122.35,37.32889454]
[1766598331321,1.81483085,122.4,122.35,47.31655677]
[1766598331322,0.68,122.39,122.35,47.31655677]
[1766598332520,8.85060597,122.39,122.35,47.31655677]
[1766598332721,0.68,122.38,122.35,47.31655677]
[1766598333118,0.68,122.38,122.35,36.65889454]
[1766598333432,0.68,122.38,122.35,37.32889454]
[1766598333621,0.68,122.38,122.35,2.48483085]
[1766598334234,0.68,122.38,122.34,9.9885977]
[1766598334435,0.68,122.37,122.34,1.81483085]
[1766598334730,0.68,122.37,122.34,0.67]
[1766598336836,0.68,122.36,122.33,25.57905574]
[1766598338837,0.68,122.36,122.33,14.92]
[1766598339045,0.68,122.36,122.33,17.42483085]
[1766598339240,0.72,122.37,122.34,2.50483085]
[1766598339839,0.72,122.37,122.34,0.69]
[1766598340044,0.72,122.37,122.34,2.50483085]
[1766598346949,0.72,122.37,122.34,0.69]
[1766598347332,0.72,122.37,122.34,2.50483085]
[1766598347952,0.72,122.37,122.34,3.52871164]
[1766598348549,0.72,122.37,122.34,0.69]
[1766598349054,0.72,122.37,122.34,3.52871164]
[1766598352757,8.89195486,122.37,122.34,3.52871164]
[1766598357570,0.72,122.37,122.34,11.7024049]
[1766598358159,8.89197811,122.37,122.34,3.52871164]
[1766598359263,0.72,122.37,122.34,3.52871164]
[1766598359766,8.89204686,122.37,122.34,3.52871164]
[1766598360888,21.14450871,122.41,122.37,0.69]
[1766598361066,21.14450871,122.41,122.34,8.17383519]
[1766598361067,0.72,122.41,122.39,0.69]
[1766598361258,0.72,122.41,122.38,0.69]
[1766598361658,0.72,122.41,122.36,8.17253235]
[1766598361863,0.72,122.41,122.38,0.69]
[1766598362066,0.72,122.41,122.38,3.52871164]
[1766598362648,0.72,122.41,122.39,3.33871164]
[1766598362864,38.17782996,122.44,122.4,3.52871164]
[1766598362865,8.88793269,122.43,122.4,3.52871164]
[1766598363169,0.72,122.42,122.39,4.02871164]
[1766598363969,0.72,122.41,122.38,18.44871164]
[1766598366879,10.43767296,122.45,122.38,18.44871164]
[1766598366880,4.25890347,122.46,122.4,13.2763846]
[1766598367049,0.72,122.44,122.41,2.83871164]
[1766598367250,0.72,122.44,122.42,2.83871164]
[1766598368961,8.16614824,122.46,122.43,2.83871164]
[1766598369161,8.16549822,122.47,122.45,2.83871164]
[1766598369665,8.16549822,122.47,122.44,2.83871164]
[1766598370272,8.16549822,122.47,122.45,2.83871164]
[1766598371159,0.71,122.46,122.45,2.83871164]
[1766598371662,33.52255148,122.48,122.45,2.83871164]
[1766598371862,33.52255148,122.48,122.44,0.68]
[1766598371863,33.52255148,122.48,122.46,2.83871164]
[1766598372269,33.52255148,122.48,122.45,2.83871164]
[1766598373570,8.71532243,122.47,122.45,2.83871164]
[1766598375281,8.16532243,122.47,122.41,14.92]
[1766598375587,0.55,122.46,122.44,2.83871164]
[1766598378197,0.55,122.46,122.43,0.68]
[1766598378198,8.71648954,122.46,122.43,0.68]
[1766598378390,8.71648954,122.46,122.44,2.83871164]
[1766598378767,0.55,122.47,122.45,2.83871164]
[1766598378968,0.55,122.47,122.46,2.83871164]
[1766598379394,0.55,122.47,122.44,0.68]
[1766598379395,8.71526496,122.47,122.45,2.83871164]
[1766598379586,8.36431065,122.49,122.47,0.68]
[1766598379902,8.36431065,122.49,122.46,2.83871164]
[1766598379903,0.55,122.48,122.46,2.83871164]
[1766598380198,8.71508784,122.48,122.46,2.83871164]
[1766598380670,0.55,122.48,122.47,2.83871164]
[1766598381266,8.7145983,122.48,122.47,2.83871164]
[1766598382191,8.7145983,122.48,122.45,0.68]
[1766598382367,8.7145983,122.48,122.46,2.83871164]
[1766598385197,0.55,122.47,122.45,2.83871164]
[1766598386073,0.55,122.47,122.43,8.84789331]
[1766598386306,0.55,122.47,122.43,3.51871164]
[1766598386500,8.71593173,122.46,122.43,3.51871164]
[1766598386711,8.71593173,122.46,122.44,2.83871164]
[1766598387000,8.71593173,122.46,122.43,3.51871164]
[1766598387168,25.35767296,122.48,122.46,0.68]
[1766598387364,25.90767296,122.48,122.46,2.83871164]
[1766598387574,25.90767296,122.48,122.45,3.51871164]
[1766598387987,0.55,122.47,122.45,2.83871164]
[1766598388296,0.55,122.47,122.44,0.68]
[1766598388499,0.55,122.47,122.45,2.83871164]
[1766598388676,8.71543284,122.47,122.44,0.68]
[1766598391799,0.55,122.46,122.43,3.51871164]
[1766598392186,8.71543284,122.47,122.44,0.68]
[1766598392692,8.16543284,122.47,122.42,14.92]
[1766598392893,0.55,122.46,122.42,2.83871164]
[1766598393103,0.55,122.46,122.43,3.51871164]
[1766598393702,8.16659861,122.45,122.43,0.68]
[1766598393999,8.16659861,122.45,122.43,3.51871164]
[1766598394189,8.16603743,122.46,122.44,0.68]
[1766598394390,8.71559808,122.47,122.44,0.68]
[1766598394591,8.16559808,122.47,122.45,0.68]
[1766598394991,8.71559808,122.47,122.44,3.51871164]
[1766598395286,8.71559808,122.47,122.43,8.16779097]
[1766598395287,8.36394319,122.49,122.47,0.68]
[1766598396501,8.36394319,122.49,122.46,0.68]
[1766598399794,8.36394319,122.49,122.46,3.51871164]
[1766598399990,8.36394319,122.49,122.46,3.55871164]
[1766598400897,8.36394319,122.49,122.46,0.72]
[1766598402008,8.91394319,122.49,122.46,0.72]
[1766598402398,8.36394319,122.49,122.46,0.72]
[1766598404112,0.2,122.49,122.47,0.72]
[1766598404613,8.36396306,122.49,122.47,0.72]
[1766598409528,0.2,122.49,122.47,0.72]
[1766598409822,0.2,122.49,122.48,0.72]
[1766598410026,0.2,122.49,122.47,2.53306298]
[1766598410397,0.2,122.49,122.47,0.72]
[1766598411728,0.2,122.49,122.47,2.53306298]
[1766598412301,0.2,122.49,122.47,1.81306298]
[1766598412503,0.2,122.49,122.47,2.53306298]
[1766598413329,0.2,122.49,122.47,0.72]
[1766598414021,0.2,122.5,122.48,0.72]
[1766598415424,0.2,122.5,122.49,0.72]
[1766598415945,0.2,122.51,122.5,0.72]
[1766598418033,0.2,122.51,122.49,2.53306298]
[1766598418441,2.51306298,122.5,122.45,0.72]
[1766598418629,2.51306298,122.49,122.45,0.72]
[1766598419035,0.7,122.49,122.46,2.53306298]
[1766598419721,23.76380446,122.5,122.47,0.72]
[1766598420736,8.86380446,122.5,122.47,0.72]
[1766598421646,8.86380446,122.5,122.47,2.53306298]
[1766598422541,8.86380446,122.5,122.47,0.72]
[1766598432952,10.67686744,122.5,122.47,0.72]
[1766598434752,8.36300017,122.51,122.47,1.81306298]
[1766598434946,0.2,122.54,122.5,1.81306298]
[1766598435254,0.2,122.54,122.53,0.7]
[1766598435429,0.91,122.54,122.5,1.81306298]
[1766598436234,10.8836636,122.54,122.49,16.71306298]
[1766598436954,2.52306298,122.52,122.47,24.87807291]
[1766598437152,0.71,122.52,122.47,24.87807291]
[1766598437454,0.71,122.52,122.48,0.7]
[1766598437752,0.71,122.51,122.47,14.9]
[1766598437938,0.71,122.51,122.47,15.6]
[1766598437939,2.52306298,122.51,122.47,15.6]
[1766598438323,0.71,122.53,122.48,0.7]
[1766598438526,0.71,122.53,122.49,0.7]
[1766598438841,0.71,122.52,122.49,0.7]
[1766598439041,8.87225312,122.52,122.49,0.7]
[1766598439244,8.16154124,122.53,122.5,0.7]
[1766598439436,0.71,122.53,122.5,0.7]
[1766598440355,0.71,122.53,122.49,1.81306298]
[1766598440548,0.71,122.53,122.49,2.51306298]
[1766598441052,0.71,122.53,122.49,0.7]
[1766598441053,8.87181918,122.53,122.49,0.7]
[1766598441252,8.87181918,122.53,122.49,2.51306298]
[1766598441665,8.87181918,122.53,122.49,1.81306298]
[1766598441854,8.87181918,122.53,122.5,0.7]
[1766598444675,8.16181918,122.53,122.5,0.7]
[1766598444969,8.87181918,122.53,122.5,2.51306298]
[1766598447858,8.87181918,122.53,122.5,0.7]
[1766598448048,8.87181918,122.53,122.5,2.51306298]
[1766598448447,8.87181918,122.53,122.5,0.7]
[1766598449271,0.71,122.52,122.49,0.7]
[1766598449569,8.87181918,122.53,122.5,0.7]
[1766598450753,0.71,122.52,122.5,0.7]
[1766598452275,8.36089983,122.54,122.51,0.7]
[1766598452460,0.2,122.56,122.53,2.51306298]
[1766598456359,0.2,122.56,122.53,1.81306298]
[1766598456671,0.2,122.56,122.54,2.51306298]
[1766598458978,0.2,122.56,122.54,0.7]
[1766598459756,0.2,122.56,122.54,1.81306298]
[1766598459961,0.2,122.56,122.55,0.67]
[1766598461278,0.2,122.57,122.56,0.67]
[1766598461590,0.2,122.57,122.55,0.67]
[1766598462272,9.07865887,122.57,122.55,0.67]
[1766598462479,0.72,122.56,122.53,17.38306298]
[1766598463388,0.72,122.56,122.53,2.48306298]
[1766598463784,0.72,122.56,122.53,10.64429651]
[1766598464080,8.35865887,122.57,122.54,0.67]
[1766598464249,0.92,122.57,122.54,2.48306298]
[1766598465381,0.2,122.57,122.55,2.48306298]
[1766598466187,0.2,122.57,122.55,0.67]
[1766598466359,0.2,122.57,122.55,2.48306298]
[1766598467175,0.92,122.57,122.54,0.67]
[1766598467483,0.92,122.57,122.55,0.5]
[1766598468175,0.92,122.57,122.54,10.64361954]
[1766598468361,0.72,122.56,122.53,14.9]
[1766598468558,8.35866551,122.57,122.54,2.48306298]
[1766598468765,9.07866551,122.57,122.54,2.48306298]
[1766598470057,9.07866551,122.57,122.54,3.49970255]
[1766598470779,9.07821465,122.58,122.53,14.9]
[1766598471014,0.72,122.57,122.54,3.15970255]
[1766598471988,0.72,122.57,122.54,0.33]
[1766598472196,0.72,122.57,122.54,3.15970255]
[1766598473980,0.2,122.58,122.55,3.15970255]
[1766598474178,0.2,122.59,122.57,3.15970255]
[1766598474382,0.2,122.59,122.58,2.82970255]
[1766598475195,0.2,122.59,122.57,3.15970255]
[1766598477878,0.2,122.59,122.56,26.2189459]
[1766598478065,0.92,122.59,122.56,26.2189459]
[1766598481011,0.2,122.59,122.57,2.82970255]
[1766598483075,0.92,122.59,122.57,2.82970255]
[1766598485591,0.92,122.59,122.56,8.48924335]
[1766598485788,0.92,122.59,122.57,2.82970255]
[1766598487096,33.85604468,122.62,122.59,0.33]
[1766598487097,0.2,122.62,122.59,0.33]
[1766598487298,0.2,122.63,122.61,2.82970255]
[1766598487592,9.05462715,122.63,122.61,2.82970255]
[1766598487896,9.05462715,122.63,122.6,2.95970255]
[1766598488094,0.9,122.63,122.62,2.82970255]
[1766598488296,0.2,122.66,122.63,0.71]
[1766598488597,0.2,122.66,122.64,2.82970255]
[1766598488798,0.2,122.66,122.64,3.53970255]
[1766598489104,0.2,122.66,122.65,2.82970255]
[1766598489279,0.2,122.66,122.64,3.53970255]
[1766598490096,0.2,122.66,122.64,2.82970255]
[1766598490301,0.2,122.66,122.64,3.53970255]
[1766598490698,0.9,122.66,122.63,2.82970255]
[1766598490899,0.9,122.66,122.63,3.53970255]
[1766598492303,9.05283374,122.66,122.63,0.71]
[1766598492507,9.05283374,122.66,122.63,3.53970255]
[1766598493309,0.7,122.65,122.61,8.15569973]
[1766598493482,0.7,122.65,122.62,2.82970255]
[1766598493801,0.7,122.64,122.61,2.82970255]
[1766598494006,2.82970255,122.64,122.59,18.43970255]
[1766598494182,2.82970255,122.64,122.59,17.72970255]
[1766598494183,0.7,122.63,122.59,17.72970255]
[1766598494709,2.82970255,122.63,122.57,8.15846295]
[1766598494903,0.7,122.62,122.58,2.82970255]
[1766598495895,0.7,122.61,122.58,2.82970255]
[1766598498192,8.85611976,122.61,122.58,2.82970255]
[1766598501110,0.7,122.61,122.58,2.82970255]
[1766598501314,0.7,122.61,122.57,23.76855059]
[1766598501516,0.7,122.61,122.58,2.82970255]
[1766598501813,0.7,122.62,122.59,3.53970255]
[1766598502012,0.7,122.62,122.59,2.82970255]
[1766598502216,0.63,122.61,122.57,23.7681192]
[1766598502386,0.63,122.61,122.58,2.82970255]
[1766598503102,0.63,122.6,122.56,11.69877258]
[1766598504194,8.78669552,122.6,122.56,8.86907003]
[1766598504394,0.63,122.59,122.56,0.71]
[1766598504594,0.63,122.59,122.56,3.53970255]
[1766598504805,0.63,122.59,122.55,55.29439356]
[1766598505211,0.63,122.59,122.55,63.45425978]
[1766598506017,0.63,122.59,122.55,55.29439356]
[1766598506713,0.63,122.59,122.55,3.53970255]
[1766598506714,8.78738644,122.59,122.55,3.53970255]
[1766598508019,3.45970255,122.58,122.53,3.53970255]
[1766598508196,0.63,122.58,122.54,3.53970255]
[1766598508531,0.63,122.58,122.55,0.71]
[1766598510799,8.78756001,122.59,122.55,11.69961465]
[1766598511014,0.63,122.58,122.55,3.53970255]
[1766598512222,0.63,122.58,122.55,0.71]
[1766598513716,8.78798153,122.58,122.55,0.71]
[1766598514138,0.63,122.57,122.53,3.53970255]
[1766598514845,0.63,122.59,122.56,3.53970255]
[1766598515131,8.78738937,122.59,122.56,3.53970255]
[1766598515332,8.78738937,122.59,122.56,0.71]
[1766598515515,8.78738937,122.59,122.56,3.53970255]
[1766598519539,11.06767296,122.61,122.58,0.67]
[1766598519727,11.06767296,122.61,122.58,3.49970255]
[1766598520035,10.43767296,122.61,122.57,3.49970255]
[1766598520244,0.63,122.6,122.57,3.49970255]
[1766598520948,0.63,122.6,122.57,0.67]
[1766598522230,0.63,122.6,122.57,3.49970255]
[1766598522948,18.59422773,122.61,122.59,0.67]
[1766598522949,10.43767296,122.61,122.59,0.67]
[1766598523122,10.43767296,122.61,122.59,3.49970255]
[1766598523324,8.78486004,122.63,122.6,3.49970255]
[1766598523951,8.78486004,122.63,122.6,0.67]
[1766598524249,8.78486004,122.63,122.6,3.49970255]
[1766598524732,8.78486004,122.63,122.59,3.49970255]
[1766598524917,0.63,122.62,122.59,3.49970255]
[1766598525117,8.78554495,122.62,122.59,3.49970255]
[1766598525317,0.63,122.6,122.56,0.67]
[1766598525548,0.63,122.6,122.57,3.49970255]
[1766598525925,25.8852475,122.62,122.57,3.49970255]
[1766598526126,0.63,122.61,122.58,0.67]
[1766598526738,8.78653629,122.61,122.58,0.67]
[1766598529748,8.7868308,122.6,122.56,0.67]
[1766598529944,10.59729861,122.6,122.56,0.67]
[1766598530824,10.59729861,122.6,122.56,1.81046781]
[1766598531024,10.59729861,122.6,122.57,0.67]
[1766598531025,8.7868308,122.6,122.57,0.67]
[1766598536756,8.1568308,122.6,122.55,23.05993324]
[1766598537065,0.63,122.58,122.55,14.9]
[1766598537263,0.63,122.59,122.56,0.67]
[1766598537970,2.44046781,122.59,122.56,0.67]
[1766598538134,8.78770661,122.59,122.56,0.67]
[1766598539437,8.15770661,122.59,122.56,0.67]
[1766598540545,0.63,122.62,122.58,0.67]
[1766598540745,8.78328169,122.65,122.61,0.67]
[1766598540946,0.63,122.64,122.61,0.67]
[1766598541660,8.15461143,122.63,122.61,0.67]
[1766598543360,8.15420296,122.64,122.61,2.48046781]
[1766598543746,8.78420296,122.64,122.61,2.48046781]
[1766598544567,0.2,122.66,122.63,2.48046781]
[1766598544734,0.2,122.66,122.64,0.67]
[1766598546113,0.2,122.66,122.65,1.81046781]
[1766598546381,0.2,122.68,122.65,2.48046781]
[1766598546565,0.83,122.68,122.65,0.67]
[1766598546764,0.83,122.68,122.65,2.48046781]
[1766598547366,8.98137752,122.68,122.65,0.67]
[1766598548280,0.83,122.68,122.65,0.67]
[1766598548463,0.83,122.68,122.65,2.48046781]
[1766598552285,0.2,122.68,122.66,0.7]
[1766598552709,0.2,122.68,122.66,2.51046781]
[1766598553508,0.83,122.68,122.64,8.85371085]
[1766598553682,0.83,122.68,122.65,2.51046781]
[1766598556306,0.2,122.68,122.65,2.51046781]
[1766598556479,0.2,122.68,122.66,0.7]
[1766598558580,0.2,122.68,122.65,1.81046781]
[1766598558789,0.83,122.68,122.65,2.51046781]
[1766598560109,0.83,122.68,122.65,10.66363429]
[1766598561479,0.83,122.68,122.65,2.51046781]
[1766598562309,0.83,122.68,122.65,0.7]
[1766598562607,8.15239714,122.67,122.63,1.81046781]
[1766598562905,8.15239714,122.67,122.64,2.51046781]
[1766598563110,8.15239714,122.67,122.65,0.7]
[1766598563691,0.83,122.68,122.65,2.51046781]
[1766598566621,0.2,122.68,122.65,0.7]
[1766598566790,0.2,122.68,122.66,0.7]
[1766598571315,10.79183024,122.68,122.64,8.15394349]
[1766598571516,8.98136243,122.68,122.65,0.7]
[1766598577669,0.63,122.67,122.65,0.7]
[1766598578268,8.98136243,122.68,122.65,0.7]
[1766598580458,8.98136243,122.68,122.64,1.81046781]
[1766598580459,0.63,122.66,122.62,0.69]
[1766598580642,0.63,122.66,122.63,2.50046781]
[1766598581348,8.78269296,122.66,122.64,0.69]
[1766598581551,8.15269296,122.66,122.64,0.69]
[1766598581737,0.2,122.68,122.64,1.81046781]
[1766598581938,0.2,122.68,122.67,0.69]
[1766598582460,8.35130309,122.68,122.66,0.69]
[1766598584952,0.2,122.68,122.66,0.69]
[1766598586660,0.2,122.68,122.66,1.81046781]
[1766598586857,8.98022866,122.7,122.68,0.69]
[1766598586858,10.63767296,122.7,122.68,0.69]
[1766598587062,10.63767296,122.7,122.69,0.69]
[1766598587450,10.63767296,122.7,122.68,0.69]
[1766598590146,0.2,122.7,122.68,0.69]
[1766598591579,8.34996952,122.7,122.68,0.69]
[1766598592751,0.2,122.7,122.68,0.69]
[1766598594576,8.35000964,122.7,122.68,0.69]
[1766598595368,0.2,122.7,122.68,0.69]
[1766598597195,0.67,122.69,122.66,3.51349943]
[1766598597565,0.67,122.69,122.67,0.69]
[1766598597759,29.39506839,122.7,122.67,0.69]
[1766598598776,29.39506839,122.7,122.64,0.69]
[1766598598777,0.67,122.68,122.64,0.69]
[1766598598984,0.67,122.67,122.64,0.69]
[1766598600277,8.82086901,122.69,122.66,2.82349943]
[1766598600482,8.82086901,122.69,122.66,3.51349943]
[1766598600665,0.67,122.68,122.65,3.51349943]
[1766598600872,0.67,122.68,122.66,0.69]
[1766598601374,8.82086901,122.69,122.66,0.69]
[1766598604185,8.15086901,122.69,122.67,0.69]
[1766598604386,8.82086901,122.69,122.67,0.69]
[1766598604593,8.82086901,122.69,122.66,3.51349943]
[1766598605472,18.78796512,122.7,122.68,0.69]
[1766598605667,18.78796512,122.7,122.67,3.51349943]
[1766598605668,19.45796512,122.7,122.67,3.51349943]
[1766598606080,0.67,122.69,122.65,2.82349943]
[1766598606279,0.67,122.69,122.66,0.69]
[1766598607396,0.67,122.69,122.66,3.51349943]
[1766598607699,19.50796512,122.7,122.67,0.72]
[1766598608602,18.78796512,122.7,122.67,0.72]
[1766598608774,0.72,122.69,122.64,23.03370022]
[1766598608975,2.82349943,122.67,122.6,11.15767296]
[1766598609211,0.72,122.65,122.61,2.82349943]
[1766598609381,10.43767296,122.66,122.64,2.82349943]
[1766598609571,10.43767296,122.66,122.64,3.54349943]